Workbook

Sheet Radians
D1: The Tangent Function
D3: This program lets you investigate the
D4: definition of the tangent function
D5: tan x = sin x / cos x .
D10: What is the interval of x-values?
D11: xMin = | E11: -1
D12: xMax = | E12: 1
D13: (in radians)
J15: Trace along the various curves:
J17: x = | K17: =xMin+L17*dx -> -0.72 | L17: 28
J18: sin x = | K18: =SIN(x0) -> -0.659384672 | O18: ="sin("&TEXT(x0,"0.00")&") " -> sin(-0.72) | Q18: =K18 -> -0.659384672
B19: Click each item below for suggestions and investigations | J19: cos x = | K19: =COS(x0) -> 0.7518057291 | N19: tan x = | O19: ="cos("&TEXT(x0,"0.00")&") " -> cos(-0.72) | P19: = | Q19: =K19 -> 0.7518057291 | R19: =" = "&TEXT(K20,"0.000") -> = -0.877
D20: Item 1 | J20: tan x = | K20: =TAN(x0) -> -0.8770678999
D21: Item 2
D22: Item 3
D23: Item 4
A29: Created by: Sheldon P. Gordon
A30: Farmingdale StateCollege
A31: Development of this module was supported by the
A32: NSF's Division of Undergraduate Education
A33: under grants DUE-0310123 and DUE-0442160.

Sheet Degrees
D1: The Tangent Function
D3: This program lets you investigate the
D4: definition of the tangent function
D5: tan x = sin x / cos x .
D9: What is the interval of x-values?
D10: xMin = | E10: -60 | F10: °
D11: xMax = | E11: 75 | F11: °
D12: (in degrees)
J14: Trace along the various curves:
J16: x = | K16: =xxMin+M16*dxx -> 27.75 | L16: ° | M16: 130
J17: sin x = | K17: =SIN(xx0) -> 0.5006364859 | P17: ="sin("&TEXT(degs,"0.00")&") " -> sin(27.75) | R17: =K17 -> 0.5006364859
B18: Click each item below for suggestions and investigations | J18: cos x = | K18: =COS(xx0) -> -0.8656576165 | O18: tan x = | P18: ="cos("&TEXT(degs,"0.00")&") " -> cos(27.75) | Q18: = | R18: =K18 -> -0.8656576165 | S18: =" = "&TEXT(K19,"0.000") -> = -0.578
D19: Item 1 | J19: tan x = | K19: =TAN(xx0) -> -0.5783308278
D20: Item 2
D21: Item 3
D22: Item 4
A28: Created by: Sheldon P. Gordon
A29: Farmingdale StateCollege
A30: Development of this module was supported by the
A31: NSF's Division of Undergraduate Education
A32: under grants DUE-0310123 and DUE-0442160.

Sheet Sheet3
B2: Sine | C2: cosine | D2: Tangent | N2: radians | O2: Sine | P2: cosine | Q2: Tangent
A3: =xMin -> -1 | B3: =SIN(A3) -> -0.8414709848 | C3: =COS(A3) -> 0.5403023059 | D3: =TAN(A3) -> -1.557407725 | E3: 0 | F3: 1 | M3: =xxMin -> -60 | N3: =M3*PI()/180 -> -1.047197551 | O3: =SIN($M3*PI()/180) -> -0.8660254038 | P3: =COS($M3*PI()/180) -> 0.5 | Q3: =TAN($M3*PI()/180) -> -1.732050808 | R3: 0 | S3: 1
A4: =A3+dx -> -0.99 | B4: =SIN(A4) -> -0.8360259786 | C4: =COS(A4) -> 0.5486898606 | D4: =TAN(A4) -> -1.523676741 | H4: x0 = | I4: =x0 -> -0.72 | J4: =SIN(x0) -> -0.659384672 | K4: sin | M4: =M3+dxx -> -59.325 | N4: =M4*PI()/180 -> -1.035416579 | O4: =SIN($M4*PI()/180) -> -0.8600749561 | P4: =COS($M4*PI()/180) -> 0.510167688 | Q4: =TAN($M4*PI()/180) -> -1.685867169 | U4: xx0 = | V4: =degs -> 27.75 | W4: =SIN($V4*PI()/180) -> 0.4656145203 | X4: sin
A5: -0.98 | B5: =SIN(A5) -> -0.8304973705 | C5: =COS(A5) -> 0.5570225468 | D5: =TAN(A5) -> -1.490958266 | E5: 0 | F5: =a -> 0 | I5: -0.72 | J5: 0 | M5: -58.65 | N5: -1.023635606 | O5: -0.8540051389 | P5: 0.52026457 | Q5: -1.641482408 | R5: 0 | S5: =a -> 0 | V5: =xx0 -> 27.75 | W5: 0
A6: -0.97 | B6: -0.8248857133 | C6: 0.5652995312 | D6: -1.459201128 | E6: 1 | F6: =a -> 0 | I6: -0.72 | J6: =COS(x0) -> 0.7518057291 | K6: cos | M6: -57.975 | N6: -1.011854634 | O6: -0.8478167945 | P6: 0.5302892446 | Q6: -1.598781803 | R6: 1 | S6: =a -> 0 | V6: =xx0 -> 27.75 | W6: =COS($V6*PI()/180) -> 0.8849876375 | X6: cos
A7: -0.96 | B7: -0.8191915683 | C7: 0.5735199861 | D7: -1.428357491 | I7: -0.72 | J7: 0 | M7: -57.3 | N7: -1.000073661 | O7: -0.8415107819 | P7: 0.5402403205 | Q7: -1.557660082 | V7: =xx0 -> 27.75 | W7: 0
A8: -0.95 | B8: -0.8134155048 | C8: 0.5816830895 | D8: -1.398382589 | I8: -0.72 | J8: =TAN(x0) -> -0.8770678999 | K8: tan | M8: -56.625 | N8: -0.9882926889 | O8: -0.8350879763 | P8: 0.5501164166 | Q8: -1.518020461 | V8: =xx0 -> 27.75 | W8: =TAN($V8*PI()/180) -> 0.5261254515 | X8: tan
A9: -0.94 | B9: -0.8075581004 | C9: 0.589788025 | D9: -1.369234481 | I9: -0.72 | J9: 0 | M9: -55.95 | N9: -0.9765117165 | O9: -0.8285492691 | P9: 0.5599161622 | Q9: -1.479773804 | V9: =xx0 -> 27.75 | W9: 0
A10: -0.93 | B10: -0.8016199409 | C10: 0.5978339823 | D10: -1.340873829 | E10: dx = | F10: =(xMax-xMin)/200 -> 0.01 | M10: -55.275 | N10: -0.964730744 | O10: -0.8218955677 | P10: 0.5696381972 | Q10: -1.442837878 | R10: dxx = | S10: =(xxMax-xxMin)/200 -> 0.675
A11: -0.92 | B11: -0.79560162 | C11: 0.6058201566 | D11: -1.313263699 | M11: -54.6 | N11: -0.9529497716 | O11: -0.8151277957 | P11: 0.5792811723 | Q11: -1.407136697
A12: -0.91 | B12: -0.7895037397 | C12: 0.6137457495 | D12: -1.286369381 | M12: -53.925 | N12: -0.9411687991 | O12: -0.8082468924 | P12: 0.5888437492 | Q12: -1.372599936
A13: -0.9 | B13: -0.7833269096 | C13: 0.6216099683 | D13: -1.260158218 | M13: -53.25 | N13: -0.9293878267 | O13: -0.8012538127 | P13: 0.5983246006 | Q13: -1.339162408
A14: -0.89 | B14: -0.7770717475 | C14: 0.6294120266 | D14: -1.234599459 | M14: -52.575 | N14: -0.9176068542 | O14: -0.7941495272 | P14: 0.6077224107 | Q14: -1.306763603
A15: -0.88 | B15: -0.7707388789 | C15: 0.6371511442 | D15: -1.209664121 | M15: -51.9 | N15: -0.9058258818 | O15: -0.786935022 | P15: 0.6170358751 | Q15: -1.275347275
A16: -0.87 | B16: -0.764328937 | C16: 0.6448265472 | D16: -1.18532486 | M16: -51.225 | N16: -0.8940449093 | O16: -0.7796112982 | P16: 0.6262637014 | Q16: -1.244861065
A17: -0.86 | B17: -0.7578425629 | C17: 0.6524374682 | D17: -1.161555858 | M17: -50.55 | N17: -0.8822639369 | O17: -0.7721793725 | P17: 0.6354046087 | Q17: -1.215256172
A18: -0.85 | B18: -0.7512804051 | C18: 0.6599831459 | D18: -1.138332713 | M18: -49.875 | N18: -0.8704829644 | O18: -0.7646402762 | P18: 0.6444573284 | Q18: -1.186487053
A19: -0.84 | B19: -0.74464312 | C19: 0.6674628258 | D19: -1.115632349 | M19: -49.2 | N19: -0.858701992 | O19: -0.7569950557 | P19: 0.653420604 | Q19: -1.15851115
A20: -0.83 | B20: -0.7379313711 | C20: 0.6748757601 | D20: -1.093432917 | M20: -48.525 | N20: -0.8469210195 | O20: -0.749244772 | P20: 0.6622931916 | Q20: -1.131288652
A21: -0.82 | B21: -0.7311458297 | C21: 0.6822212073 | D21: -1.071713723 | M21: -47.85 | N21: -0.8351400471 | O21: -0.7413905009 | P21: 0.6710738597 | Q21: -1.104782268
A22: -0.81 | B22: -0.7242871744 | C22: 0.689498433 | D22: -1.050455142 | M22: -47.175 | N22: -0.8233590746 | O22: -0.7334333325 | P22: 0.6797613896 | Q22: -1.078957034
A23: -0.8 | B23: -0.7173560909 | C23: 0.6967067093 | D23: -1.029638557 | M23: -46.5 | N23: -0.8115781022 | O23: -0.725374371 | P23: 0.6883545757 | Q23: -1.053780125
A24: -0.79 | B24: -0.7103532724 | C24: 0.7038453157 | D24: -1.009246288 | M24: -45.825 | N24: -0.7997971297 | O24: -0.7172147351 | P24: 0.6968522252 | Q24: -1.0292207
A25: -0.78 | B25: -0.7032794192 | C25: 0.710913538 | D25: -0.9892615369 | M25: -45.15 | N25: -0.7880161573 | O25: -0.7089555571 | P25: 0.7052531589 | Q25: -1.005249744
A26: -0.77 | B26: -0.6961352386 | C26: 0.7179106696 | D26: -0.969668328 | M26: -44.475 | N26: -0.7762351848 | O26: -0.7005979834 | P26: 0.7135562106 | Q26: -0.9818399349
A27: -0.76 | B27: -0.6889214451 | C27: 0.7248360107 | D27: -0.9504514606 | M27: -43.8 | N27: -0.7644542124 | O27: -0.6921431739 | P27: 0.7217602281 | Q27: -0.958965522
A28: -0.75 | B28: -0.68163876 | C28: 0.7316888689 | D28: -0.9315964599 | M28: -43.125 | N28: -0.7526732399 | O28: -0.683592302 | P28: 0.7298640727 | Q28: -0.936602208
A29: -0.74 | B29: -0.6742879116 | C29: 0.7384685587 | D29: -0.9130895333 | M29: -42.45 | N29: -0.7408922675 | O29: -0.6749465546 | P29: 0.7378666197 | Q29: -0.9147270477
A30: -0.73 | B30: -0.666869635 | C30: 0.7451744023 | D30: -0.8949175292 | M30: -41.775 | N30: -0.729111295 | O30: -0.6662071315 | P30: 0.7457667584 | Q30: -0.893318352
A31: -0.72 | B31: -0.659384672 | C31: 0.7518057291 | D31: -0.8770678999 | M31: -41.1 | N31: -0.7173303226 | O31: -0.6573752458 | P31: 0.7535633923 | Q31: -0.8723556007
A32: -0.71 | B32: -0.651833771 | C32: 0.758361876 | D32: -0.8595286652 | M32: -40.425 | N32: -0.7055493501 | O32: -0.6484521231 | P32: 0.7612554394 | Q32: -0.8518193626
A33: -0.7 | B33: -0.6442176872 | C33: 0.7648421873 | D33: -0.8422883805 | M33: -39.75 | N33: -0.6937683777 | O33: -0.639439002 | P33: 0.7688418321 | Q33: -0.8316912209
A34: -0.69 | B34: -0.6365371822 | C34: 0.771246015 | D34: -0.8253361053 | M34: -39.075 | N34: -0.6819874052 | O34: -0.6303371333 | P34: 0.7763215174 | Q34: -0.8119537062
A35: -0.68 | B35: -0.628793024 | C35: 0.7775727188 | D35: -0.8086613751 | M35: -38.4 | N35: -0.6702064328 | O35: -0.6211477803 | P35: 0.7836934573 | Q35: -0.7925902334
A36: =A35+dx -> -0.67 | B36: -0.620985987 | C36: 0.7838216659 | D36: -0.7922541747 | M36: =M35+dxx -> -37.725 | N36: -0.6584254603 | O36: -0.6118722184 | P36: 0.7909566286 | Q36: -0.773585044
A37: -0.66 | B37: -0.613116852 | C37: 0.7899922315 | D37: -0.7761049128 | M37: -37.05 | N37: -0.6466444879 | O37: -0.6025117349 | P37: 0.7981100233 | Q37: -0.7549231525
A38: -0.65 | B38: -0.6051864057 | C38: 0.7960837985 | D38: -0.7602043991 | M38: -36.375 | N38: -0.6348635154 | O38: -0.593067629 | P38: 0.8051526486 | Q38: -0.7365902975
A39: -0.64 | B39: -0.5971954414 | C39: 0.8020957579 | D39: -0.7445438222 | M39: -35.7 | N39: -0.623082543 | O39: -0.5835412114 | P39: 0.8120835269 | Q39: -0.7185728956
A40: -0.63 | B40: -0.5891447579 | C40: 0.8080275083 | D40: -0.7291147292 | M40: -35.025 | N40: -0.6113015705 | O40: -0.5739338042 | P40: 0.8189016964 | Q40: -0.7008579989
A41: -0.62 | B41: -0.5810351605 | C41: 0.8138784567 | D41: -0.7139090067 | M41: -34.35 | N41: -0.5995205981 | O41: -0.564246741 | P41: 0.8256062108 | Q41: -0.6834332563
A42: -0.61 | B42: -0.5728674601 | C42: 0.8196480178 | D42: -0.6989188623 | M42: -33.675 | N42: -0.5877396256 | O42: -0.5544813662 | P42: 0.8321961395 | Q42: -0.6662868762
A43: -0.6 | B43: -0.5646424734 | C43: 0.8253356149 | D43: -0.6841368083 | M43: -33 | N43: -0.5759586532 | O43: -0.544639035 | P43: 0.8386705679 | Q43: -0.6494075932
A44: -0.59 | B44: -0.5563610229 | C44: 0.8309406791 | D44: -0.6695556457 | M44: -32.325 | N44: -0.5641776807 | O44: -0.5347211136 | P44: 0.8450285976 | Q44: -0.632784636
A45: -0.58 | B45: -0.5480239368 | C45: 0.8364626499 | D45: -0.6551684488 | M45: -31.65 | N45: -0.5523967083 | O45: -0.5247289783 | P45: 0.8512693459 | Q45: -0.6164076985
A46: -0.57 | B46: -0.5396320487 | C46: 0.8419009752 | D46: -0.6409685517 | M46: -30.975 | N46: -0.5406157358 | O46: -0.5146640161 | P46: 0.8573919469 | Q46: -0.6002669118
A47: -0.56 | B47: -0.5311861979 | C47: 0.847255111 | D47: -0.6269495351 | M47: -30.3 | N47: -0.5288347634 | O47: -0.5045276238 | P47: 0.8633955506 | Q47: -0.5843528189
A48: -0.55 | B48: -0.5226872289 | C48: 0.8525245221 | D48: -0.6131052133 | M48: -29.625 | N48: -0.5170537909 | O48: -0.4943212083 | P48: 0.8692793239 | Q48: -0.5686563509
A49: -0.54 | B49: -0.5141359917 | C49: 0.8577086814 | D49: -0.5994296232 | M49: -28.95 | N49: -0.5052728185 | O49: -0.4840461861 | P49: 0.8750424503 | Q49: -0.5531688045
A50: -0.53 | B50: -0.5055333412 | C50: 0.8628070705 | D50: -0.5859170126 | M50: -28.275 | N50: -0.493491846 | O50: -0.4737039832 | P50: 0.8806841297 | Q50: -0.5378818208
A51: -0.52 | B51: -0.4968801378 | C51: 0.8678191797 | D51: -0.5725618303 | M51: -27.6 | N51: -0.4817108736 | O51: -0.4632960351 | P51: 0.8862035792 | Q51: -0.5227873662
A52: -0.51 | B52: -0.4881772469 | C52: 0.8727445076 | D52: -0.5593587156 | M52: -26.925 | N52: -0.4699299011 | O52: -0.4528237863 | P52: 0.8916000328 | Q52: -0.5078777138
A53: -0.5 | B53: -0.4794255386 | C53: 0.8775825619 | D53: -0.5463024898 | M53: -26.25 | N53: -0.4581489286 | O53: -0.4422886902 | P53: 0.8968727415 | Q53: -0.493145426
A54: -0.49 | B54: -0.4706258882 | C54: 0.8823328586 | D54: -0.5333881466 | M54: -25.575 | N54: -0.4463679562 | O54: -0.431692209 | P54: 0.9020209735 | Q54: -0.4785833386
A55: -0.48 | B55: -0.4617791755 | C55: 0.8869949228 | D55: -0.5206108442 | M55: -24.9 | N55: -0.4345869837 | O55: -0.4210358134 | P55: 0.9070440143 | Q55: -0.4641845453
A56: -0.47 | B56: -0.4528862854 | C56: 0.8915682882 | D56: -0.5079658971 | M56: -24.225 | N56: -0.4228060113 | O56: -0.4103209823 | P56: 0.9119411667 | Q56: -0.4499423837
A57: -0.46 | B57: -0.443948107 | C57: 0.8960524975 | D57: -0.4954487691 | M57: -23.55 | N57: -0.4110250388 | O57: -0.3995492029 | P57: 0.916711751 | Q57: -0.4358504213
A58: -0.45 | B58: -0.4349655341 | C58: 0.9004471024 | D58: -0.4830550656 | M58: -22.875 | N58: -0.3992440664 | O58: -0.3887219702 | P58: 0.9213551052 | Q58: -0.4219024434
A59: -0.44 | B59: -0.4259394651 | C59: 0.9047516632 | D59: -0.4707805273 | M59: -22.2 | N59: -0.3874630939 | O59: -0.3778407868 | P59: 0.9258705848 | Q59: -0.4080924408
A60: -0.43 | B60: -0.4168708024 | C60: 0.9089657497 | D60: -0.4586210235 | M60: -21.525 | N60: -0.3756821215 | O60: -0.3669071631 | P60: 0.9302575631 | Q60: -0.3944145983
A61: -0.42 | B61: -0.4077604531 | C61: 0.9130889403 | D61: -0.4465725463 | M61: -20.85 | N61: -0.363901149 | O61: -0.3559226164 | P61: 0.9345154312 | Q61: -0.3808632843
A62: -0.41 | B62: -0.398609328 | C62: 0.9171208228 | D62: -0.4346312046 | M62: -20.175 | N62: -0.3521201766 | O62: -0.3448886713 | P62: 0.9386435982 | Q62: -0.3674330406
A63: -0.4 | B63: -0.3894183423 | C63: 0.921060994 | D63: -0.4227932187 | M63: -19.5 | N63: -0.3403392041 | O63: -0.3338068592 | P63: 0.9426414911 | Q63: -0.3541185725
A64: -0.39 | B64: -0.3801884151 | C64: 0.9249090599 | D64: -0.4110549152 | M64: -18.825 | N64: -0.3285582317 | O64: -0.3226787182 | P64: 0.9465085551 | Q64: -0.3409147403
A65: -0.38 | B65: -0.3709204694 | C65: 0.9286646356 | D65: -0.3994127215 | M65: -18.15 | N65: -0.3167772592 | O65: -0.3115057927 | P65: 0.9502442534 | Q65: -0.3278165499
A66: -0.37 | B66: -0.361615432 | C66: 0.9323273456 | D66: -0.3878631617 | M66: -17.475 | N66: -0.3049962868 | O66: -0.3002896334 | P66: 0.9538480676 | Q66: -0.3148191453
A67: -0.36 | B67: -0.3522742333 | C67: 0.9358968237 | D67: -0.3764028516 | M67: -16.8 | N67: -0.2932153143 | O67: -0.2890317969 | P67: 0.9573194975 | Q67: -0.3019178004
A68: =A67+dx -> -0.35 | B68: -0.3428978075 | C68: 0.9393727128 | D68: -0.3650284948 | M68: =M67+dxx -> -16.125 | N68: =M68*PI()/180 -> -0.2814343419 | O68: =SIN($M68*PI()/180) -> -0.2777338459 | P68: =COS($M68*PI()/180) -> 0.9606580614 | Q68: =TAN($M68*PI()/180) -> -0.2891079116
A69: -0.34 | B69: =SIN(A69) -> -0.3334870921 | C69: =COS(A69) -> 0.9427546655 | D69: =TAN(A69) -> -0.353736878 | M69: -15.45 | N69: -0.2696533694 | O69: -0.2663973482 | P69: 0.9638632957 | Q69: -0.2763849909
A70: -0.33 | B70: -0.3240430284 | C70: 0.9460423435 | D70: -0.3425248675 | M70: -14.775 | N70: -0.257872397 | O70: -0.2550238773 | P70: 0.9669347558 | Q70: -0.2637446589
A71: -0.32 | B71: -0.3145665606 | C71: 0.9492354181 | D71: -0.3313894052 | M71: -14.1 | N71: -0.2460914245 | O71: -0.2436150118 | P71: 0.9698720153 | Q71: -0.2511826385
A72: -0.31 | B72: -0.3050586364 | C72: 0.9523335699 | D72: -0.3203275051 | M72: -13.425 | N72: -0.2343104521 | O72: -0.232172335 | P72: 0.9726746665 | Q72: -0.2386947486
A73: -0.3 | B73: -0.2955202067 | C73: 0.9553364891 | D73: -0.3093362496 | M73: -12.75 | N73: -0.2225294796 | O73: -0.220697435 | P73: 0.9753423205 | Q73: -0.2262768983
A74: -0.29 | B74: -0.2859522251 | C74: 0.9582438755 | D74: -0.2984127866 | M74: -12.075 | N74: -0.2107485072 | O74: -0.2091919045 | P74: 0.977874607 | Q74: -0.213925081
A75: -0.28 | B75: -0.2763556486 | C75: 0.9610554383 | D75: -0.2875543257 | M75: -11.4 | N75: -0.1989675347 | O75: -0.1976573404 | P75: 0.9802711746 | Q75: -0.2016353694
A76: -0.27 | B76: -0.2667314367 | C76: 0.9637708964 | D76: -0.2767581359 | M76: -10.725 | N76: -0.1871865623 | O76: -0.1860953434 | P76: 0.9825316907 | Q76: -0.1894039095
A77: -0.26 | B77: -0.2570805519 | C77: 0.9663899781 | D77: -0.2660215417 | M77: -10.05 | N77: -0.1754055898 | O77: -0.1745075183 | P77: 0.9846558414 | Q77: -0.1772269162
A78: -0.25 | B78: -0.2474039593 | C78: 0.9689124217 | D78: -0.2553419212 | M78: -9.375 | N78: -0.1636246174 | O78: -0.1628954734 | P78: 0.9866433321 | Q78: -0.1651006682
A79: -0.24 | B79: -0.2377026264 | C79: 0.9713379749 | D79: -0.2447167027 | M79: -8.7 | N79: -0.1518436449 | O79: -0.1512608202 | P79: 0.9884938868 | Q79: -0.153021503
A80: -0.23 | B80: -0.2279775235 | C80: 0.973666395 | D80: -0.2341433624 | M80: -8.025 | N80: -0.1400626725 | O80: -0.1396051737 | P80: 0.9902072488 | Q80: -0.1409858126
A81: -0.22 | B81: -0.2182296231 | C81: 0.9758974493 | D81: -0.2236194215 | M81: -7.35 | N81: -0.1282817 | O81: -0.1279301513 | P81: 0.9917831801 | Q81: -0.1289900392
A82: -0.21 | B82: -0.2084598998 | C82: 0.9780309147 | D82: -0.2131424444 | M82: -6.675 | N82: -0.1165007276 | O82: -0.1162373736 | P82: 0.9932214622 | Q82: -0.1170306704
A83: -0.2 | B83: -0.1986693308 | C83: 0.9800665778 | D83: -0.2027100355 | M83: -6 | N83: -0.1047197551 | O83: -0.1045284633 | P83: 0.9945218954 | Q83: -0.1051042353
A84: -0.19 | B84: -0.188858895 | C84: 0.9820042351 | D84: -0.1923198376 | M84: -5.325 | N84: -0.09293878267 | O84: -0.0928050455 | P84: 0.9956842991 | Q84: -0.09320730033
A85: -0.18 | B85: -0.1790295734 | C85: 0.9838436928 | D85: -0.181969529 | M85: -4.65 | N85: -0.08115781022 | O85: -0.08106874735 | P85: 0.9967085122 | Q85: -0.08133646534
A86: -0.17 | B86: -0.1691823491 | C86: 0.9855847669 | D86: -0.1716568222 | M86: -3.975 | N86: -0.06937683777 | O86: -0.06932119769 | P86: 0.9975943923 | Q86: -0.06948835942
A87: -0.16 | B87: -0.1593182066 | C87: 0.9872272834 | D87: -0.1613794607 | M87: -3.3 | N87: -0.05759586532 | O87: -0.05756402696 | P87: 0.9983418166 | Q87: -0.05765963721
A88: -0.15 | B88: -0.1494381325 | C88: 0.9887710779 | D88: -0.1511352181 | M88: -2.625 | N88: -0.04581489286 | O88: -0.04579886694 | P88: 0.9989506814 | Q88: -0.04584697502
A89: -0.14 | B89: -0.1395431146 | C89: 0.9902159962 | D89: -0.140921895 | M89: -1.95 | N89: -0.03403392041 | O89: -0.0340273505 | P89: 0.999420902 | Q89: -0.03404706709
A90: -0.13 | B90: -0.1296341426 | C90: 0.9915618937 | D90: -0.130737318 | M90: -1.275 | N90: -0.02225294796 | O90: -0.02225111142 | P90: 0.9997524134 | Q90: -0.02225662186
A91: -0.12 | B91: -0.1197122073 | C91: 0.9928086359 | D91: -0.1205793372 | M91: -0.6 | N91: -0.01047197551 | O91: -0.01047178412 | P91: 0.9999451694 | Q91: -0.01047235832
A92: -0.11 | B92: -0.1097783008 | C92: 0.993956098 | D92: -0.1104458246 | M92: 0.075 | N92: 0.001308996939 | O92: 0.001308996565 | P92: 0.9999991433 | Q92: 0.001308997687
A93: -0.1 | B93: -0.09983341665 | C93: 0.9950041653 | D93: -0.1003346721 | M93: 0.75 | N93: 0.01308996939 | O93: 0.01308959557 | P93: 0.9999143276 | Q93: 0.01309071708
A94: -0.09 | B94: -0.0898785492 | C94: 0.995952733 | D94: -0.09024378991 | M94: 1.425 | N94: 0.02487094184 | O94: 0.02486837788 | P94: 0.9996907341 | Q94: 0.0248760712
A95: -0.08 | B95: -0.07991469397 | C95: 0.9968017063 | D95: -0.08017110471 | M95: 2.1 | N95: 0.03665191429 | O95: 0.03664370871 | P95: 0.9993283938 | Q95: 0.03666833539
A96: -0.07 | B96: -0.06994284734 | C96: 0.9975510003 | D96: -0.07011455787 | M96: 2.775 | N96: 0.04843288674 | O96: 0.04841395377 | P96: 0.998827357 | Q96: 0.0484707927
A97: -0.06 | B97: -0.05996400648 | C97: 0.9982005399 | D97: -0.06007210383 | M97: 3.45 | N97: 0.06021385919 | O97: 0.06017747947 | P97: 0.9981876933 | Q97: 0.06028673753
A98: -0.05 | B98: -0.04997916927 | C98: 0.9987502604 | D98: -0.05004170838 | M98: 4.125 | N98: 0.07199483164 | O98: 0.07193265316 | P98: 0.9974094913 | Q98: 0.07211947929
A99: -0.04 | B99: -0.03998933419 | C99: 0.9992001067 | D99: -0.040021347 | M99: 4.8 | N99: 0.0837758041 | O99: 0.08367784333 | P99: 0.9964928592 | Q99: 0.08397234617
A100: =A99+dx -> -0.03 | B100: -0.0299955002 | C100: 0.9995500337 | D100: -0.03000900324 | M100: =M99+dxx -> 5.475 | N100: 0.09555677655 | O100: 0.09541141988 | P100: 0.9954379242 | Q100: 0.09584868887
A101: -0.02 | B101: -0.01999866669 | C101: 0.9998000067 | D101: -0.02000266709 | M101: 6.15 | N101: 0.107337749 | O101: 0.1071317543 | P101: 0.9942448326 | Q101: 0.1077518844
A102: -0.01 | B102: -0.009999833334 | C102: 0.9999500004 | D102: -0.01000033335 | M102: 6.825 | N102: 0.1191187214 | O102: 0.11883722 | P102: 0.9929137501 | Q102: 0.1196853402
A103: 7.528699886e-16 | B103: 7.528699886e-16 | C103: 1 | D103: 7.528699886e-16 | M103: 7.5 | N103: 0.1308996939 | O103: 0.1305261922 | P103: 0.9914448614 | Q103: 0.1316524976
A104: 0.01 | B104: 0.009999833334 | C104: 0.9999500004 | D104: 0.01000033335 | M104: 8.175 | N104: 0.1426806664 | O104: 0.1421970488 | P104: 0.9898383703 | Q104: 0.1436568364
A105: 0.02 | B105: 0.01999866669 | C105: 0.9998000067 | D105: 0.02000266709 | M105: 8.85 | N105: 0.1544616388 | O105: 0.1538481699 | P105: 0.9880944998 | Q105: 0.1557018786
A106: 0.03 | B106: 0.0299955002 | C106: 0.9995500337 | D106: 0.03000900324 | M106: 9.525 | N106: 0.1662426113 | O106: 0.1654779384 | P106: 0.986213492 | Q106: 0.167791193
A107: 0.04 | B107: 0.03998933419 | C107: 0.9992001067 | D107: 0.040021347 | M107: 10.2 | N107: 0.1780235837 | O107: 0.1770847403 | P107: 0.984195608 | Q107: 0.1799283993
A108: 0.05 | B108: 0.04997916927 | C108: 0.9987502604 | D108: 0.05004170838 | M108: 10.875 | N108: 0.1898045562 | O108: 0.1886669647 | P108: 0.9820411277 | Q108: 0.1921171725
A109: 0.06 | B109: 0.05996400648 | C109: 0.9982005399 | D109: 0.06007210383 | M109: 11.55 | N109: 0.2015855286 | O109: 0.200223004 | P109: 0.9797503502 | Q109: 0.2043612477
A110: 0.07 | B110: 0.06994284734 | C110: 0.9975510003 | D110: 0.07011455787 | M110: 12.225 | N110: 0.2133665011 | O110: 0.2117512545 | P110: 0.9773235934 | Q110: 0.2166644251
A111: 0.08 | B111: 0.07991469397 | C111: 0.9968017063 | D111: 0.08017110471 | M111: 12.9 | N111: 0.2251474735 | O111: 0.223250116 | P111: 0.9747611942 | Q111: 0.2290305742
A112: 0.09 | B112: 0.0898785492 | C112: 0.995952733 | D112: 0.09024378991 | M112: 13.575 | N112: 0.236928446 | O112: 0.2347179927 | P112: 0.9720635082 | Q112: 0.2414636397
A113: 0.1 | B113: 0.09983341665 | C113: 0.9950041653 | D113: 0.1003346721 | M113: 14.25 | N113: 0.2487094184 | O113: 0.246153293 | P113: 0.9692309097 | Q113: 0.2539676465
A114: 0.11 | B114: 0.1097783008 | C114: 0.993956098 | D114: 0.1104458246 | M114: 14.925 | N114: 0.2604903909 | O114: 0.2575544298 | P114: 0.966263792 | Q114: 0.2665467049
A115: 0.12 | B115: 0.1197122073 | C115: 0.9928086359 | D115: 0.1205793372 | M115: 15.6 | N115: 0.2722713633 | O115: 0.2689198206 | P115: 0.9631625668 | Q115: 0.2792050168
A116: 0.13 | B116: 0.1296341426 | C116: 0.9915618937 | D116: 0.130737318 | M116: 16.275 | N116: 0.2840523358 | O116: 0.2802478882 | P116: 0.9599276646 | Q116: 0.2919468815
A117: 0.14 | B117: 0.1395431146 | C117: 0.9902159962 | D117: 0.140921895 | M117: 16.95 | N117: 0.2958333082 | O117: 0.2915370602 | P117: 0.9565595342 | Q117: 0.3047767021
A118: 0.15 | B118: 0.1494381325 | C118: 0.9887710779 | D118: 0.1511352181 | M118: 17.625 | N118: 0.3076142807 | O118: 0.3027857698 | P118: 0.9530586433 | Q118: 0.3176989915
A119: 0.16 | B119: 0.1593182066 | C119: 0.9872272834 | D119: 0.1613794607 | M119: 18.3 | N119: 0.3193952531 | O119: 0.313992456 | P119: 0.9494254776 | Q119: 0.3307183801
A120: 0.17 | B120: 0.1691823491 | C120: 0.9855847669 | D120: 0.1716568222 | M120: 18.975 | N120: 0.3311762256 | O120: 0.3251555632 | P120: 0.9456605415 | Q120: 0.343839622
A121: 0.18 | B121: 0.1790295734 | C121: 0.9838436928 | D121: 0.181969529 | M121: 19.65 | N121: 0.342957198 | O121: 0.3362735421 | P121: 0.9417643574 | Q121: 0.3570676035
A122: 0.19 | B122: 0.188858895 | C122: 0.9820042351 | D122: 0.1923198376 | M122: 20.325 | N122: 0.3547381705 | O122: 0.3473448498 | P122: 0.9377374661 | Q122: 0.37040735
A123: 0.2 | B123: 0.1986693308 | C123: 0.9800665778 | D123: 0.2027100355 | M123: 21 | N123: 0.3665191429 | O123: 0.3583679495 | P123: 0.9335804265 | Q123: 0.383864035
A124: 0.21 | B124: 0.2084598998 | C124: 0.9780309147 | D124: 0.2131424444 | M124: 21.675 | N124: 0.3783001154 | O124: 0.3693413115 | P124: 0.9292938155 | Q124: 0.3974429888
A125: 0.22 | B125: 0.2182296231 | C125: 0.9758974493 | D125: 0.2236194215 | M125: 22.35 | N125: 0.3900810878 | O125: 0.3802634127 | P125: 0.9248782282 | Q125: 0.4111497072
A126: 0.23 | B126: 0.2279775235 | C126: 0.973666395 | D126: 0.2341433624 | M126: 23.025 | N126: 0.4018620603 | O126: 0.3911327373 | P126: 0.9203342772 | Q126: 0.4249898618
A127: 0.24 | B127: 0.2377026264 | C127: 0.9713379749 | D127: 0.2447167027 | M127: 23.7 | N127: 0.4136430327 | O127: 0.4019477767 | P127: 0.9156625933 | Q127: 0.4389693099
A128: 0.25 | B128: 0.2474039593 | C128: 0.9689124217 | D128: 0.2553419212 | M128: 24.375 | N128: 0.4254240052 | O128: 0.4127070298 | P128: 0.9108638249 | Q128: 0.4530941053
A129: 0.26 | B129: 0.2570805519 | C129: 0.9663899781 | D129: 0.2660215417 | M129: 25.05 | N129: 0.4372049776 | O129: 0.4234090035 | P129: 0.905938638 | Q129: 0.4673705102
A130: 0.27 | B130: 0.2667314367 | C130: 0.9637708964 | D130: 0.2767581359 | M130: 25.725 | N130: 0.4489859501 | O130: 0.4340522123 | P130: 0.9008877161 | Q130: 0.481805007
A131: 0.28 | B131: 0.2763556486 | C131: 0.9610554383 | D131: 0.2875543257 | M131: 26.4 | N131: 0.4607669225 | O131: 0.4446351792 | P131: 0.8957117602 | Q131: 0.496404311
A132: =A131+dx -> 0.29 | B132: 0.2859522251 | C132: 0.9582438755 | D132: 0.2984127866 | M132: =M131+dxx -> 27.075 | N132: =M132*PI()/180 -> 0.472547895 | O132: =SIN($M132*PI()/180) -> 0.4551564353 | P132: =COS($M132*PI()/180) -> 0.8904114888 | Q132: =TAN($M132*PI()/180) -> 0.5111753846
A133: 0.3 | B133: =SIN(A133) -> 0.2955202067 | C133: =COS(A133) -> 0.9553364891 | D133: =TAN(A133) -> 0.3093362496 | M133: 27.75 | N133: 0.4843288674 | O133: 0.4656145203 | P133: 0.8849876375 | Q133: 0.5261254515
A134: 0.31 | B134: 0.3050586364 | C134: 0.9523335699 | D134: 0.3203275051 | M134: 28.425 | N134: 0.4961098399 | O134: 0.4760079829 | P134: 0.8794409589 | Q134: 0.541262012
A135: 0.32 | B135: 0.3145665606 | C135: 0.9492354181 | D135: 0.3313894052 | M135: 29.1 | N135: 0.5078908123 | O135: 0.4863353804 | P135: 0.873772223 | Q135: 0.5565928598
A136: 0.33 | B136: 0.3240430284 | C136: 0.9460423435 | D136: 0.3425248675 | M136: 29.775 | N136: 0.5196717848 | O136: 0.4965952796 | P136: 0.8679822166 | Q136: 0.5721260991
A137: 0.34 | B137: 0.3334870921 | C137: 0.9427546655 | D137: 0.353736878 | M137: 30.45 | N137: 0.5314527572 | O137: 0.5067862565 | P137: 0.8620717431 | Q137: 0.5878701635
A138: 0.35 | B138: 0.3428978075 | C138: 0.9393727128 | D138: 0.3650284948 | M138: 31.125 | N138: 0.5432337297 | O138: 0.5169068967 | P138: 0.8560416229 | Q138: 0.6038338357
A139: 0.36 | B139: 0.3522742333 | C139: 0.9358968237 | D139: 0.3764028516 | M139: 31.8 | N139: 0.5550147021 | O139: 0.5269557955 | P139: 0.849892693 | Q139: 0.620026269
A140: 0.37 | B140: 0.361615432 | C140: 0.9323273456 | D140: 0.3878631617 | M140: 32.475 | N140: 0.5667956746 | O140: 0.5369315583 | P140: 0.8436258067 | Q140: 0.6364570097
A141: 0.38 | B141: 0.3709204694 | C141: 0.9286646356 | D141: 0.3994127215 | M141: 33.15 | N141: 0.578576647 | O141: 0.5468328005 | P141: 0.8372418338 | Q141: 0.6531360216
A142: 0.39 | B142: 0.3801884151 | C142: 0.9249090599 | D142: 0.4110549152 | M142: 33.825 | N142: 0.5903576195 | O142: 0.5566581479 | P142: 0.8307416604 | Q142: 0.6700737118
A143: 0.4 | B143: 0.3894183423 | C143: 0.921060994 | D143: 0.4227932187 | M143: 34.5 | N143: 0.6021385919 | O143: 0.5664062369 | P143: 0.8241261886 | Q143: 0.6872809586
A144: 0.41 | B144: 0.398609328 | C144: 0.9171208228 | D144: 0.4346312046 | M144: 35.175 | N144: 0.6139195644 | O144: 0.5760757146 | P144: 0.8173963366 | Q144: 0.7047691417
A145: 0.42 | B145: 0.4077604531 | C145: 0.9130889403 | D145: 0.4465725463 | M145: 35.85 | N145: 0.6257005368 | O145: 0.5856652389 | P145: 0.8105530384 | Q145: 0.722550174
A146: 0.43 | B146: 0.4168708024 | C146: 0.9089657497 | D146: 0.4586210235 | M146: 36.525 | N146: 0.6374815093 | O146: 0.5951734788 | P146: 0.8035972437 | Q146: 0.7406365359
A147: 0.44 | B147: 0.4259394651 | C147: 0.9047516632 | D147: 0.4707805273 | M147: 37.2 | N147: 0.6492624817 | O147: 0.6045991149 | P147: 0.796529918 | Q147: 0.7590413131
A148: 0.45 | B148: 0.4349655341 | C148: 0.9004471024 | D148: 0.4830550656 | M148: 37.875 | N148: 0.6610434542 | O148: 0.6139408388 | P148: 0.7893520422 | Q148: 0.7777782357
A149: 0.46 | B149: 0.443948107 | C149: 0.8960524975 | D149: 0.4954487691 | M149: 38.55 | N149: 0.6728244266 | O149: 0.623197354 | P149: 0.7820646124 | Q149: 0.7968617223
A150: 0.47 | B150: 0.4528862854 | C150: 0.8915682882 | D150: 0.5079658971 | M150: 39.225 | N150: 0.6846053991 | O150: 0.6323673758 | P150: 0.7746686401 | Q150: 0.8163069254
A151: 0.48 | B151: 0.4617791755 | C151: 0.8869949228 | D151: 0.5206108442 | M151: 39.9 | N151: 0.6963863715 | O151: 0.6414496316 | P151: 0.7671651518 | Q151: 0.8361297826
A152: 0.49 | B152: 0.4706258882 | C152: 0.8823328586 | D152: 0.5333881466 | M152: 40.575 | N152: 0.708167344 | O152: 0.6504428607 | P152: 0.7595551889 | Q152: 0.8563470703
A153: 0.5 | B153: 0.4794255386 | C153: 0.8775825619 | D153: 0.5463024898 | M153: 41.25 | N153: 0.7199483164 | O153: 0.6593458151 | P153: 0.7518398075 | Q153: 0.876976463
A154: 0.51 | B154: 0.4881772469 | C154: 0.8727445076 | D154: 0.5593587156 | M154: 41.925 | N154: 0.7317292889 | O154: 0.6681572591 | P154: 0.7440200785 | Q154: 0.8980365966
A155: 0.52 | B155: 0.4968801378 | C155: 0.8678191797 | D155: 0.5725618303 | M155: 42.6 | N155: 0.7435102613 | O155: 0.6768759697 | P155: 0.7360970871 | Q155: 0.9195471379
A156: 0.53 | B156: 0.5055333412 | C156: 0.8628070705 | D156: 0.5859170126 | M156: 43.275 | N156: 0.7552912338 | O156: 0.6855007369 | P156: 0.7280719331 | Q156: 0.9415288596
A157: 0.54 | B157: 0.5141359917 | C157: 0.8577086814 | D157: 0.5994296232 | M157: 43.95 | N157: 0.7670722063 | O157: 0.6940303636 | P157: 0.7199457301 | Q157: 0.9640037222
A158: 0.55 | B158: 0.5226872289 | C158: 0.8525245221 | D158: 0.6131052133 | M158: 44.625 | N158: 0.7788531787 | O158: 0.7024636661 | P158: 0.7117196062 | Q158: 0.9869949627
A159: 0.56 | B159: 0.5311861979 | C159: 0.847255111 | D159: 0.6269495351 | M159: 45.3 | N159: 0.7906341512 | O159: 0.7107994739 | P159: 0.7033947028 | Q159: 1.010527192
A160: 0.57 | B160: 0.5396320487 | C160: 0.8419009752 | D160: 0.6409685517 | M160: 45.975 | N160: 0.8024151236 | O160: 0.71903663 | P160: 0.6949721755 | Q160: 1.034626501
A161: 0.58 | B161: 0.5480239368 | C161: 0.8364626499 | D161: 0.6551684488 | M161: 46.65 | N161: 0.8141960961 | O161: 0.7271739912 | P161: 0.6864531932 | Q161: 1.059320575
A162: 0.59 | B162: 0.5563610229 | C162: 0.8309406791 | D162: 0.6695556457 | M162: 47.325 | N162: 0.8259770685 | O162: 0.7352104282 | P162: 0.6778389383 | Q162: 1.084638823
A163: 0.6 | B163: 0.5646424734 | C163: 0.8253356149 | D163: 0.6841368083 | M163: 48 | N163: 0.837758041 | O163: 0.7431448255 | P163: 0.6691306064 | Q163: 1.110612515
A164: =A163+dx -> 0.61 | B164: 0.5728674601 | C164: 0.8196480178 | D164: 0.6989188623 | M164: =M163+dxx -> 48.675 | N164: 0.8495390134 | O164: 0.7509760819 | P164: 0.6603294059 | Q164: 1.137274935
A165: 0.62 | B165: 0.5810351605 | C165: 0.8138784567 | D165: 0.7139090067 | M165: 49.35 | N165: 0.8613199859 | O165: 0.7587031107 | P165: 0.6514365586 | Q165: 1.164661548
A166: 0.63 | B166: 0.5891447579 | C166: 0.8080275083 | D166: 0.7291147292 | M166: 50.025 | N166: 0.8731009583 | O166: 0.7663248392 | P166: 0.6424532986 | Q166: 1.192810187
A167: 0.64 | B167: 0.5971954414 | C167: 0.8020957579 | D167: 0.7445438222 | M167: 50.7 | N167: 0.8848819308 | O167: 0.7738402097 | P167: 0.6333808726 | Q167: 1.221761255
A168: 0.65 | B168: 0.6051864057 | C168: 0.7960837985 | D168: 0.7602043991 | M168: 51.375 | N168: 0.8966629032 | O168: 0.7812481792 | P168: 0.6242205399 | Q168: 1.25155795
A169: 0.66 | B169: 0.613116852 | C169: 0.7899922315 | D169: 0.7761049128 | M169: 52.05 | N169: 0.9084438757 | O169: 0.7885477195 | P169: 0.6149735719 | Q169: 1.282246515
A170: 0.67 | B170: 0.620985987 | C170: 0.7838216659 | D170: 0.7922541747 | M170: 52.725 | N170: 0.9202248481 | O170: 0.7957378174 | P170: 0.6056412518 | Q170: 1.313876515
A171: 0.68 | B171: 0.628793024 | C171: 0.7775727188 | D171: 0.8086613751 | M171: 53.4 | N171: 0.9320058206 | O171: 0.8028174752 | P171: 0.596224875 | Q171: 1.346501142
A172: 0.69 | B172: 0.6365371822 | C172: 0.771246015 | D172: 0.8253361053 | M172: 54.075 | N172: 0.943786793 | O172: 0.8097857101 | P172: 0.5867257482 | Q172: 1.380177557
A173: 0.7 | B173: 0.6442176872 | C173: 0.7648421873 | D173: 0.8422883805 | M173: 54.75 | N173: 0.9555677655 | O173: 0.8166415552 | P173: 0.57714519 | Q173: 1.414967272
A174: 0.71 | B174: 0.651833771 | C174: 0.758361876 | D174: 0.8595286652 | M174: 55.425 | N174: 0.9673487379 | O174: 0.8233840587 | P174: 0.56748453 | Q174: 1.450936572
A175: 0.72 | B175: 0.659384672 | C175: 0.7518057291 | D175: 0.8770678999 | M175: 56.1 | N175: 0.9791297104 | O175: 0.8300122851 | P175: 0.557745109 | Q175: 1.488156995
A176: 0.73 | B176: 0.666869635 | C176: 0.7451744023 | D176: 0.8949175292 | M176: 56.775 | N176: 0.9909106828 | O176: 0.8365253143 | P176: 0.5479282787 | Q176: 1.526705861
A177: 0.74 | B177: 0.6742879116 | C177: 0.7384685587 | D177: 0.9130895333 | M177: 57.45 | N177: 1.002691655 | O177: 0.8429222424 | P177: 0.5380354015 | Q177: 1.566666877
A178: 0.75 | B178: 0.68163876 | C178: 0.7316888689 | D178: 0.9315964599 | M178: 58.125 | N178: 1.014472628 | O178: 0.8492021815 | P178: 0.5280678507 | Q178: 1.608130812
A179: 0.76 | B179: 0.6889214451 | C179: 0.7248360107 | D179: 0.9504514606 | M179: 58.8 | N179: 1.0262536 | O179: 0.8553642602 | P179: 0.5180270094 | Q179: 1.651196259
A180: 0.77 | B180: 0.6961352386 | C180: 0.7179106696 | D180: 0.969668328 | M180: 59.475 | N180: 1.038034573 | O180: 0.861407623 | P180: 0.5079142713 | Q180: 1.695970505
A181: 0.78 | B181: 0.7032794192 | C181: 0.710913538 | D181: 0.9892615369 | M181: 60.15 | N181: 1.049815545 | O181: 0.8673314314 | P181: 0.4977310399 | Q181: 1.742570509
A182: 0.79 | B182: 0.7103532724 | C182: 0.7038453157 | D182: 1.009246288 | M182: 60.825 | N182: 1.061596518 | O182: 0.8731348631 | P182: 0.4874787286 | Q182: 1.791124026
A183: 0.8 | B183: 0.7173560909 | C183: 0.6967067093 | D183: 1.029638557 | M183: 61.5 | N183: 1.07337749 | O183: 0.8788171127 | P183: 0.4771587603 | Q183: 1.841770886
A184: 0.81 | B184: 0.7242871744 | C184: 0.689498433 | D184: 1.050455142 | M184: 62.175 | N184: 1.085158462 | O184: 0.8843773915 | P184: 0.4667725672 | Q184: 1.894664455
A185: 0.82 | B185: 0.7311458297 | C185: 0.6822212073 | D185: 1.071713723 | M185: 62.85 | N185: 1.096939435 | O185: 0.8898149278 | P185: 0.4563215909 | Q185: 1.94997332
A186: 0.83 | B186: 0.7379313711 | C186: 0.6748757601 | D186: 1.093432917 | M186: 63.525 | N186: 1.108720407 | O186: 0.8951289669 | P186: 0.4458072819 | Q186: 2.007883234
A187: 0.84 | B187: 0.74464312 | C187: 0.6674628258 | D187: 1.115632349 | M187: 64.2 | N187: 1.12050138 | O187: 0.9003187714 | P187: 0.4352310994 | Q187: 2.068599355
A188: 0.85 | B188: 0.7512804051 | C188: 0.6599831459 | D188: 1.138332713 | M188: 64.875 | N188: 1.132282352 | O188: 0.9053836209 | P188: 0.4245945113 | Q188: 2.132348857
A189: 0.86 | B189: 0.7578425629 | C189: 0.6524374682 | D189: 1.161555858 | M189: 65.55 | N189: 1.144063325 | O189: 0.9103228125 | P189: 0.4138989938 | Q189: 2.199383971
A190: 0.87 | B190: 0.764328937 | C190: 0.6448265472 | D190: 1.18532486 | M190: 66.225 | N190: 1.155844297 | O190: 0.9151356606 | P190: 0.4031460315 | Q190: 2.269985537
A191: 0.88 | B191: 0.7707388789 | C191: 0.6371511442 | D191: 1.209664121 | M191: 66.9 | N191: 1.16762527 | O191: 0.9198214973 | P191: 0.3923371166 | Q191: 2.34446719
A192: 0.89 | B192: 0.7770717475 | C192: 0.6294120266 | D192: 1.234599459 | M192: 67.575 | N192: 1.179406242 | O192: 0.9243796723 | P192: 0.3814737494 | Q192: 2.423180294
A193: 0.9 | B193: 0.7833269096 | C193: 0.6216099683 | D193: 1.260158218 | M193: 68.25 | N193: 1.191187214 | O193: 0.9288095529 | P193: 0.3705574375 | Q193: 2.506519797
A194: 0.91 | B194: 0.7895037397 | C194: 0.6137457495 | D194: 1.286369381 | M194: 68.925 | N194: 1.202968187 | O194: 0.9331105242 | P194: 0.3595896961 | Q194: 2.594931207
A195: 0.92 | B195: 0.79560162 | C195: 0.6058201566 | D195: 1.313263699 | M195: 69.6 | N195: 1.214749159 | O195: 0.9372819895 | P195: 0.3485720473 | Q195: 2.688918967
A196: =A195+dx -> 0.93 | B196: 0.8016199409 | C196: 0.5978339823 | D196: 1.340873829 | M196: =M195+dxx -> 70.275 | N196: =M196*PI()/180 -> 1.226530132 | O196: =SIN($M196*PI()/180) -> 0.9413233696 | P196: =COS($M196*PI()/180) -> 0.3375060203 | Q196: =TAN($M196*PI()/180) -> 2.789056529
A197: 0.94 | B197: =SIN(A197) -> 0.8075581004 | C197: =COS(A197) -> 0.589788025 | D197: =TAN(A197) -> 1.369234481 | M197: 70.95 | N197: 1.238311104 | O197: 0.9452341038 | P197: 0.326393151 | Q197: 2.895998586
A198: 0.95 | B198: 0.8134155048 | C198: 0.5816830895 | D198: 1.398382589 | M198: 71.625 | N198: 1.250092077 | O198: 0.9490136492 | P198: 0.3152349816 | Q198: 3.010495993
A199: 0.96 | B199: 0.8191915683 | C199: 0.5735199861 | D199: 1.428357491 | M199: 72.3 | N199: 1.261873049 | O199: 0.9526614813 | P199: 0.3040330609 | Q199: 3.133414104
A200: 0.97 | B200: 0.8248857133 | C200: 0.5652995312 | D200: 1.459201128 | M200: 72.975 | N200: 1.273654022 | O200: 0.9561770937 | P200: 0.2927889435 | Q200: 3.265755469
A201: 0.98 | B201: 0.8304973705 | C201: 0.5570225468 | D201: 1.490958266 | M201: 73.65 | N201: 1.285434994 | O201: 0.9595599986 | P201: 0.2815041901 | Q201: 3.408688156
... 2 more rows
